fUSD/lending_fUSD_20250616
["ID","MTS","AMOUNT","RATE_DAILY","PERIOD"]
[366048257,1750032084879,314.5,0.00013699,2]
[366048260,1750032262241,2751.0,0.00015355,2]
[366048274,1750032519290,1000.0,0.0001538,2]
[366048275,1750032573649,1001.14567158,0.000246,120]
[366048277,1750032599588,1929.0,0.0001549,2]
[366048279,1750032612147,203.0,0.0001454,2]
[366048280,1750032622256,301.9,0.0001537,2]
[366048288,1750032631800,-436.45,0.00015531,2]
[366048289,1750032631812,-300.0,0.00015532,2]
[366048290,1750032631823,-300.0,0.00015533,2]
[366048291,1750032631833,-657.29366246,0.00015738,2]
[366048292,1750032631843,-166.84,0.00015838,2]
[366048293,1750032631853,-300.0,0.00015864,2]
[366048294,1750032631863,-1079.81633774,0.00015864,2]
[366048295,1750032632024,-120.18366226,0.00015864,2]
[366048296,1750032632035,-600.44805931,0.00015865,2]
[366048297,1750032632046,-2284.361627,0.00015865,2]
[366048299,1750032632058,-609.88347487,0.00015865,2]
[366048301,1750032632070,-4447.69263675,0.00015865,2]
[366048303,1750032632081,-872.20919339,0.00015865,2]
[366048318,1750032632224,-456.7858882,0.00015865,2]
[366048320,1750032632238,-3573.41722218,0.00015865,2]
[366048322,1750032632248,-203.0,0.00015877,3]
[366048324,1750032632258,-300.0,0.00015878,2]
[366048326,1750032632268,-151.0,0.00015879,2]
[366048328,1750032632278,-1888.00000002,0.00015879,2]
[366048330,1750032632287,-207.4,0.00015879,2]
[366048332,1750032632297,-657.29366245,0.0001602,2]
[366048333,1750032632307,-503.0,0.00016192,2]
[366048335,1750032632318,-902.381626,0.00016269,2]
[366048337,1750032632328,-657.29366245,0.00016302,2]
[366048340,1750032632339,-150.0,0.0001633,2]
[366048342,1750032632350,-150.0,0.00016332,2]
[366048343,1750032632361,-1000.0,0.00016337,2]
[366048345,1750032632371,-150.0,0.00016337,2]
[366048348,1750032632381,-205.41151752,0.00016338,2]
[366048351,1750032632390,-160.70045445,0.00016338,2]
[366048353,1750032632399,-578.89090034,0.00016338,2]
[366048355,1750032632410,-598.95145247,0.00016338,2]
[366048357,1750032632419,-184.94399605,0.00016338,2]
[366048359,1750032632429,-5000.0,0.00016338,2]
[366048361,1750032632438,-150.0,0.00016341,2]
[366048363,1750032632447,-150.0,0.00016346,2]
[366048365,1750032632457,-150.0,0.00016349,2]
[366048367,1750032632466,-150.0,0.00016361,2]
[366048369,1750032632475,-637.0,0.00016375,2]
[366048371,1750032632484,-590.0,0.00016375,2]
[366048372,1750032632493,-2002.0,0.00016375,2]
[366048374,1750032632502,-1276.0,0.00016375,2]
[366048376,1750032632512,-558.0,0.00016375,2]
[366048378,1750032632521,-927.0,0.00016375,2]
[366048380,1750032632530,-1674.0,0.00016375,2]
[366048382,1750032632540,-150.0,0.00016375,2]
[366048384,1750032632550,-150.0,0.00016376,2]
[366048386,1750032632560,-150.0,0.00016376,2]
[366048388,1750032632570,-316.0013757,0.00016378,2]
[366048390,1750032632579,-150.0,0.00016378,2]
[366048392,1750032632591,-150.0,0.00016381,2]
[366048393,1750032632601,-150.0,0.00016383,2]
[366048396,1750032632612,-150.0,0.00016384,2]
[366048397,1750032632621,-150.0,0.00016386,2]
[366048400,1750032632631,-150.0,0.00016391,2]
[366048401,1750032632641,-598.95145247,0.00016399,2]
[366048404,1750032632651,-14406.9423772,0.000164,5]
[366048406,1750032632661,-150.0,0.00016402,2]
[366048407,1750032632671,-150.0,0.00016402,2]
[366048409,1750032632680,-150.0,0.00016406,2]
[366048411,1750032632690,-150.0,0.00016407,2]
[366048412,1750032632700,-150.0,0.00016409,2]
[366048413,1750032632709,-2060.519,0.00016411,2]
[366048415,1750032632719,-150.0,0.00016418,2]
[366048417,1750032632730,-150.0,0.0001642,2]
[366048418,1750032632739,-150.0,0.00016426,2]
[366048420,1750032632749,-170.32177766,0.00016428,2]
[366048422,1750032632758,-1510.8,0.00016428,2]
[366048424,1750032632767,-1000.0,0.00016431,2]
[366048426,1750032632777,-205.41151751,0.00016432,2]
[366048428,1750032632786,-150.0,0.00016434,2]
[366048430,1750032632796,-199.95064393,0.00016437,2]
[366048432,1750032632806,-500.0,0.00016437,2]
[366048434,1750032632818,-358.7955506,0.00016437,2]
[366048436,1750032632827,-500.0,0.00016437,2]
[366048438,1750032632836,-387.62130137,0.00016437,2]
[366048440,1750032632847,-201.32947782,0.00016438,2]
[366048442,1750032632858,-490.0,0.00016438,2]
[366048444,1750032632867,-490.0,0.00016438,2]
[366048446,1750032632877,-490.0,0.00016438,2]
[366048448,1750032632887,-490.0,0.00016438,2]
[366048450,1750032632897,-427.36747142,0.00016438,2]
[366048466,1750032633058,-62.63252858,0.00016438,2]
[366048468,1750032633070,-490.0,0.00016438,2]
[366048470,1750032633080,-490.0,0.00016438,2]
[366048472,1750032633090,-490.0,0.00016438,2]
[366048474,1750032633100,-500.0,0.00016438,2]
[366048476,1750032633110,-500.0,0.00016438,2]
[366048478,1750032633121,-500.0,0.00016438,2]
[366048480,1750032633131,-500.0,0.00016438,2]
[366048482,1750032633141,-594.66625495,0.00016438,2]
[366048484,1750032633152,-500.0,0.00016438,2]
[366048487,1750032633162,-500.0,0.00016438,2]
[366048489,1750032633172,-490.0,0.00016438,2]
[366048491,1750032633182,-490.0,0.00016438,2]
[366048493,1750032633192,-500.0,0.00016438,2]
[366048494,1750032633202,-500.0,0.00016438,2]
[366048496,1750032633212,-500.0,0.00016438,2]
[366048498,1750032633222,-500.0,0.00016438,2]
[366048500,1750032633232,-500.0,0.00016438,2]
[366048503,1750032633243,-500.0,0.00016438,2]
[366048505,1750032633254,-636.75,0.00016438,2]
[366048507,1750032633264,-500.0,0.00016438,2]
[366048509,1750032633277,-500.0,0.00016438,2]
[366048511,1750032633288,-387.55459487,0.00016438,2]
[366048513,1750032633298,-3293.417796,0.00016438,2]
[366048515,1750032633308,-490.0,0.00016438,2]
[366048517,1750032633319,-500.0,0.00016438,2]
[366048519,1750032633329,-500.0,0.00016438,2]
[366048521,1750032633339,-490.0,0.00016438,2]
[366048523,1750032633349,-490.0,0.00016438,2]
[366048525,1750032633359,-500.0,0.00016438,2]
[366048526,1750032633368,-400.0,0.00016438,2]
[366048527,1750032633377,-580.88,0.00016438,2]
[366048528,1750032633387,-490.0,0.00016438,2]
[366048529,1750032633397,-490.0,0.00016438,2]
[366048530,1750032633407,-490.0,0.00016438,2]
[366048531,1750032633417,-683.35,0.00016438,2]
[366048532,1750032633427,-490.0,0.00016438,2]
[366048533,1750032633438,-4819.150082,0.00016438,2]
[366048534,1750032633447,-159.843096,0.00016438,2]
[366048535,1750032633457,-490.0,0.00016438,2]
[366048536,1750032633467,-490.0,0.00016438,2]
[366048537,1750032633477,-527.77,0.00016438,2]
[366048538,1750032633487,-490.0,0.00016438,2]
[366048539,1750032633497,-158.856192,0.00016438,2]
[366048540,1750032633507,-398.91009095,0.00016438,2]
[366048541,1750032633517,-490.0,0.00016438,2]
[366048543,1750032633527,-490.0,0.00016438,2]
[366048545,1750032633537,-676.73,0.00016438,2]
[366048547,1750032633546,-490.0,0.00016438,2]
[366048549,1750032633556,-490.0,0.00016438,2]
[366048551,1750032633568,-490.0,0.00016438,2]
[366048553,1750032633580,-490.0,0.00016438,2]
[366048555,1750032633590,-490.0,0.00016438,2]
[366048557,1750032633601,-1005.14,0.00016438,2]
[366048559,1750032633612,-490.0,0.00016438,2]
[366048561,1750032633621,-583.28,0.00016438,2]
[366048563,1750032633632,-1200.91,0.00016438,2]
[366048565,1750032633642,-399.27596772,0.00016438,2]
[366048567,1750032633652,-490.0,0.00016438,2]
[366048569,1750032633662,-490.0,0.00016438,2]
[366048571,1750032633672,-490.0,0.00016438,2]
[366048573,1750032633682,-490.0,0.00016438,2]
[366048575,1750032633691,-490.0,0.00016438,2]
[366048577,1750032633702,-490.0,0.00016438,2]
[366048579,1750032633712,-490.0,0.00016438,2]
[366048581,1750032633721,-490.0,0.00016438,2]
[366048583,1750032633731,-663.47,0.00016438,2]
[366048585,1750032633741,-490.0,0.00016438,2]
[366048587,1750032633751,-823.88,0.00016438,2]
[366048589,1750032633762,-588.05,0.00016438,2]
[366048591,1750032633771,-300.77349848,0.00016438,2]
[366048593,1750032633782,-421.92243892,0.00016438,2]
[366048594,1750032633792,-490.0,0.00016438,2]
[366048596,1750032633802,-490.0,0.00016438,2]
[366048597,1750032633814,-490.0,0.00016438,2]
[366048599,1750032633825,-490.0,0.00016438,2]
[366048601,1750032633835,-490.0,0.00016438,2]
[366048603,1750032633846,-490.0,0.00016438,2]
[366048605,1750032633856,-691.49,0.00016438,2]
[366048607,1750032633866,-490.0,0.00016438,2]
[366048609,1750032633879,-340.15270318,0.00016438,2]
[366048611,1750032633890,-490.0,0.00016438,2]
[366048613,1750032633901,-990.71,0.00016438,2]
[366048615,1750032633911,-490.0,0.00016438,2]
[366048616,1750032633922,-490.0,0.00016438,2]
[366048618,1750032633932,-791.52,0.00016438,2]
[366048620,1750032633942,-490.0,0.00016438,2]
[366048622,1750032633952,-490.0,0.00016438,2]
[366048624,1750032633964,-1028.14,0.00016438,2]
[366048626,1750032633975,-490.0,0.00016438,2]
[366048628,1750032633985,-490.0,0.00016438,2]
[366048630,1750032633995,-490.0,0.00016438,2]
[366048632,1750032634005,-615.13,0.00016438,2]
[366048634,1750032634014,-490.0,0.00016438,2]
[366048636,1750032634024,-527.78,0.00016438,2]
[366048638,1750032634034,-241.633156,0.00016438,2]
[366048640,1750032634044,-2046.8,0.00016438,2]
[366048642,1750032634054,-490.0,0.00016438,2]
[366048644,1750032634067,-490.0,0.00016438,2]
[366048646,1750032634078,-21.88144484,0.00016438,2]
[366048649,1750032634099,-468.11855516,0.00016438,2]
[366048651,1750032634110,-816.46,0.00016438,2]
[366048652,1750032634120,-490.0,0.00016438,2]
[366048654,1750032634132,-490.0,0.00016438,2]
[366048656,1750032634142,-1000.0,0.00016438,2]
[366048658,1750032634153,-382.66499843,0.00016438,2]
[366048660,1750032634164,-490.0,0.00016438,2]
[366048662,1750032634175,-490.0,0.00016438,2]
[366048664,1750032634185,-542.37,0.00016438,2]
[366048666,1750032634196,-521.24952481,0.00016438,2]
[366048668,1750032634206,-490.0,0.00016438,2]
[366048670,1750032634217,-490.0,0.00016438,2]
[366048672,1750032634227,-490.0,0.00016438,2]
[366048674,1750032634237,-806.44,0.00016438,2]
[366048676,1750032634249,-1786.89,0.00016438,2]
[366048678,1750032634259,-490.0,0.00016438,2]
[366048680,1750032634269,-490.0,0.00016438,2]
[366048682,1750032634279,-490.0,0.00016438,2]
[366048684,1750032634290,-490.0,0.00016438,2]
[366048686,1750032634300,-490.0,0.00016438,2]
[366048688,1750032634310,-490.0,0.00016438,2]
[366048690,1750032634323,-490.0,0.00016438,2]
[366048692,1750032634334,-490.0,0.00016438,2]
[366048694,1750032634344,-490.0,0.00016438,2]
[366048696,1750032634354,-490.0,0.00016438,2]
[366048698,1750032634365,-624.48,0.00016438,2]
[366048700,1750032634375,-490.0,0.00016438,2]
[366048702,1750032634386,-490.0,0.00016438,2]
[366048704,1750032634396,-563.47180547,0.00016438,2]
[366048706,1750032634406,-490.0,0.00016438,2]
[366048708,1750032634416,-490.0,0.00016438,2]
[366048709,1750032634426,-490.0,0.00016438,2]
[366048711,1750032634436,-500.0,0.00016438,2]
[366048713,1750032634445,-490.0,0.00016438,2]
[366048715,1750032634455,-578.53,0.00016438,2]
[366048717,1750032634464,-154.10742376,0.00016438,2]
[366048719,1750032634474,-490.0,0.00016438,2]
[366048721,1750032634483,-490.0,0.00016438,2]
[366048723,1750032634493,-490.0,0.00016438,2]
[366048725,1750032634502,-490.0,0.00016438,2]
[366048727,1750032634512,-490.0,0.00016438,2]
[366048729,1750032634521,-490.0,0.00016438,2]
[366048731,1750032634529,-490.0,0.00016438,2]
[366048733,1750032634539,-490.0,0.00016438,2]
[366048735,1750032634548,-490.0,0.00016438,2]
[366048737,1750032634558,-490.0,0.00016438,2]
[366048739,1750032634569,-545.44,0.00016438,2]
[366048741,1750032634579,-490.0,0.00016438,2]
[366048743,1750032634588,-490.0,0.00016438,2]
[366048745,1750032634597,-490.0,0.00016438,2]
[366048747,1750032634606,-234.41488933,0.00016438,2]
[366048749,1750032634616,-490.0,0.00016438,2]
[366048758,1750032634626,-490.0,0.00016438,2]
[366048759,1750032634846,-760.37,0.00016438,2]
[366048760,1750032634857,-636.73,0.00016438,2]
[366048761,1750032634867,-942.58,0.00016438,2]
[366048762,1750032634877,-490.0,0.00016438,2]
[366048763,1750032634886,-490.0,0.00016438,2]
[366048764,1750032634896,-562.94,0.00016438,2]
[366048765,1750032634906,-490.0,0.00016438,2]
[366048766,1750032634916,-526.4604166,0.00016438,2]
[366048767,1750032634926,-1015.38,0.00016438,2]
[366048768,1750032634935,-490.0,0.00016438,2]
[366048769,1750032634945,-375.12382837,0.00016438,2]
[366048770,1750032634955,-490.0,0.00016438,2]
[366048771,1750032634964,-490.0,0.00016438,2]
[366048772,1750032634974,-742.29,0.00016438,2]
[366048773,1750032634984,-490.0,0.00016438,2]
[366048774,1750032634993,-490.0,0.00016438,2]
[366048775,1750032635002,-490.0,0.00016438,2]
[366048776,1750032635012,-490.0,0.00016438,2]
[366048777,1750032635022,-490.0,0.00016438,2]
[366048778,1750032635031,-490.0,0.00016438,2]
[366048779,1750032635040,-600.4,0.00016438,2]
[366048780,1750032635051,-490.0,0.00016438,2]
[366048781,1750032635060,-1071.58,0.00016438,2]
[366048782,1750032635071,-1127.69,0.00016438,2]
[366048783,1750032635081,-490.0,0.00016438,2]
[366048784,1750032635091,-490.0,0.00016438,2]
[366048785,1750032635101,-490.0,0.00016438,2]
[366048786,1750032635112,-490.0,0.00016438,2]
[366048787,1750032635121,-490.0,0.00016438,2]
[366048788,1750032635131,-1544.31,0.00016438,2]
[366048789,1750032635142,-490.0,0.00016438,2]
[366048790,1750032635152,-490.0,0.00016438,2]
[366048791,1750032635162,-490.0,0.00016438,2]
[366048792,1750032635172,-490.0,0.00016438,2]
[366048793,1750032635182,-490.0,0.00016438,2]
[366048794,1750032635192,-618.09,0.00016438,2]
[366048795,1750032635202,-490.0,0.00016438,2]
[366048796,1750032635212,-490.0,0.00016438,2]
[366048797,1750032635223,-962.58,0.00016438,2]
[366048798,1750032635234,-490.0,0.00016438,2]
[366048799,1750032635244,-490.0,0.00016438,2]
[366048800,1750032635255,-490.0,0.00016438,2]
[366048801,1750032635265,-490.0,0.00016438,2]
[366048802,1750032635276,-758.33,0.00016438,2]
[366048803,1750032635286,-490.0,0.00016438,2]
[366048804,1750032635296,-1464.31,0.00016438,2]
[366048805,1750032635306,-500.0,0.00016438,2]
[366048806,1750032635318,-540.02333534,0.00016438,2]
[366048807,1750032635327,-490.0,0.00016438,2]
[366048808,1750032635338,-670.81,0.00016438,2]
[366048809,1750032635348,-490.0,0.00016438,2]
[366048810,1750032635358,-490.0,0.00016438,2]
[366048811,1750032635369,-490.0,0.00016438,2]
[366048812,1750032635378,-490.0,0.00016438,2]
[366048813,1750032635387,-2013.13,0.00016438,2]
[366048814,1750032635397,-490.0,0.00016438,2]
[366048815,1750032635407,-490.0,0.00016438,2]
[366048816,1750032635416,-490.0,0.00016438,2]
[366048817,1750032635426,-490.0,0.00016438,2]
[366048818,1750032635436,-526.07393292,0.00016438,2]
[366048819,1750032635447,-490.0,0.00016438,2]
[366048820,1750032635456,-500.0,0.00016438,2]
[366048821,1750032635467,-1232.08,0.00016438,2]
[366048822,1750032635477,-500.0,0.00016438,2]
[366048823,1750032635487,-508.34,0.00016438,2]
[366048824,1750032635496,-490.0,0.00016438,2]
[366048825,1750032635507,-490.0,0.00016438,2]
[366048826,1750032635517,-490.0,0.00016438,2]
[366048827,1750032635527,-490.0,0.00016438,2]
[366048828,1750032635537,-490.0,0.00016438,2]
[366048829,1750032635547,-589.59382575,0.00016438,2]
[366048830,1750032635557,-808.46,0.00016438,2]
[366048831,1750032635568,-490.0,0.00016438,2]
[366048832,1750032635578,-490.0,0.00016438,2]
[366048833,1750032635588,-490.0,0.00016438,2]
[366048834,1750032635598,-490.0,0.00016438,2]
[366048835,1750032635608,-768.99,0.00016438,2]
[366048836,1750032635618,-490.0,0.00016438,2]
[366048837,1750032635628,-1511.64,0.00016438,2]
[366048838,1750032635638,-490.0,0.00016438,2]
[366048839,1750032635648,-500.43804012,0.00016438,2]
[366048840,1750032635658,-490.0,0.00016438,2]
[366048841,1750032635668,-636.41,0.00016438,2]
[366048842,1750032635679,-490.0,0.00016438,2]
[366048843,1750032635689,-490.0,0.00016438,2]
[366048844,1750032635698,-490.0,0.00016438,2]
[366048845,1750032635708,-583.79688141,0.00016438,2]
[366048846,1750032635718,-538.91,0.00016438,2]
[366048847,1750032635727,-490.0,0.00016438,2]
[366048848,1750032635738,-490.0,0.00016438,2]
[366048849,1750032635748,-490.0,0.00016438,2]
[366048850,1750032635757,-490.0,0.00016438,2]
[366048851,1750032635767,-490.0,0.00016438,2]
[366048852,1750032635777,-490.0,0.00016438,2]
[366048853,1750032635787,-580.98,0.00016438,2]
[366048854,1750032635796,-490.0,0.00016438,2]
[366048855,1750032635807,-490.0,0.00016438,2]
[366048856,1750032635817,-1264.36,0.00016438,2]
[366048857,1750032635826,-1524.76,0.00016438,2]
[366048858,1750032635835,-490.0,0.00016438,2]
[366048859,1750032635844,-490.0,0.00016438,2]
[366048860,1750032635854,-797.89,0.00016438,2]
[366048861,1750032635863,-488.69209263,0.00016438,2]
[366048862,1750032635873,-490.0,0.00016438,2]
[366048863,1750032635886,-490.0,0.00016438,2]
[366048864,1750032635896,-775.42,0.00016438,2]
[366048865,1750032635906,-1765.92,0.00016438,2]
[366048866,1750032635915,-639.28,0.00016438,2]
[366048867,1750032635927,-490.0,0.00016438,2]
[366048868,1750032635937,-490.0,0.00016438,2]
[366048869,1750032635947,-490.0,0.00016438,2]
[366048870,1750032635958,-703.94,0.00016438,2]
[366048871,1750032635968,-364.81,0.00016438,2]
[366048872,1750032635978,-929.2,0.00016438,2]
[366048873,1750032635988,-490.0,0.00016438,2]
[366048874,1750032635998,-490.0,0.00016438,2]
[366048875,1750032636008,-490.0,0.00016438,2]
[366048876,1750032636018,-490.0,0.00016438,2]
[366048877,1750032636028,-490.0,0.00016438,2]
[366048878,1750032636038,-1369.5,0.00016438,2]
[366048879,1750032636048,-1618.79,0.00016438,2]
[366048880,1750032636058,-490.0,0.00016438,2]
[366048881,1750032636068,-1905.93,0.00016438,2]
[366048882,1750032636078,-490.0,0.00016438,2]
[366048883,1750032636089,-490.0,0.00016438,2]
[366048884,1750032636099,-869.67,0.00016438,2]
[366048885,1750032636109,-1499.04,0.00016438,2]
[366048886,1750032636119,-430.0,0.00016438,2]
[366048887,1750032636130,-546.07,0.00016438,2]
[366048888,1750032636140,-490.0,0.00016438,2]
[366048889,1750032636149,-490.0,0.00016438,2]
[366048890,1750032636159,-696.95,0.00016438,2]
[366048891,1750032636169,-967.48,0.00016438,2]
[366048892,1750032636180,-1790.68,0.00016438,2]
[366048893,1750032636191,-554.29,0.00016438,2]
[366048894,1750032636202,-490.0,0.00016438,2]
[366048895,1750032636212,-1436.16,0.00016438,2]
[366048896,1750032636224,-490.0,0.00016438,2]
[366048897,1750032636234,-490.0,0.00016438,2]
[366048898,1750032636245,-490.0,0.00016438,2]
[366048899,1750032636255,-1652.09,0.00016438,2]
[366048900,1750032636266,-592.2,0.00016438,2]
[366048901,1750032636275,-490.0,0.00016438,2]
[366048902,1750032636285,-490.0,0.00016438,2]
[366048903,1750032636296,-513.16,0.00016438,2]
[366048904,1750032636306,-490.0,0.00016438,2]
[366048905,1750032636316,-490.0,0.00016438,2]
[366048906,1750032636327,-557.6,0.00016438,2]
[366048907,1750032636336,-490.0,0.00016438,2]
[366048908,1750032636347,-490.0,0.00016438,2]
[366048909,1750032636356,-403.54150259,0.00016438,2]
[366048910,1750032636366,-1733.31,0.00016438,2]
[366048911,1750032636377,-781.63,0.00016438,2]
[366048912,1750032636387,-758.75,0.00016438,2]
[366048913,1750032636397,-721.86,0.00016438,2]
[366048914,1750032636407,-996.86,0.00016438,2]
[366048915,1750032636417,-490.0,0.00016438,2]
[366048916,1750032636427,-490.0,0.00016438,2]
[366048917,1750032636437,-490.0,0.00016438,2]
[366048918,1750032636447,-490.0,0.00016438,2]
[366048919,1750032636457,-490.0,0.00016438,2]
[366048920,1750032636467,-490.0,0.00016438,2]
[366048921,1750032636477,-490.0,0.00016438,2]
[366048922,1750032636487,-490.0,0.00016438,2]
[366048923,1750032636496,-899.5,0.00016438,2]
[366048924,1750032636507,-490.0,0.00016438,2]
[366048925,1750032636519,-1679.2,0.00016438,2]
[366048926,1750032636529,-711.93,0.00016438,2]
[366048927,1750032636539,-490.0,0.00016438,2]
[366048928,1750032636549,-560.06,0.00016438,2]
[366048929,1750032636559,-1333.59,0.00016438,2]
[366048930,1750032636571,-490.0,0.00016438,2]
[366048931,1750032636582,-1141.98,0.00016438,2]
[366048932,1750032636592,-490.0,0.00016438,2]
[366048933,1750032636602,-490.0,0.00016438,2]
[366048934,1750032636612,-490.0,0.00016438,2]
[366048935,1750032636622,-490.0,0.00016438,2]
[366048936,1750032636632,-490.0,0.00016438,2]
[366048937,1750032636642,-490.0,0.00016438,2]
[366048938,1750032636652,-557.44034607,0.00016438,2]
[366048939,1750032636663,-490.0,0.00016438,2]
[366048940,1750032636674,-1698.15,0.00016438,2]
[366048941,1750032636684,-963.49,0.00016438,2]
[366048942,1750032636694,-490.0,0.00016438,2]
[366048943,1750032636704,-490.0,0.00016438,2]
[366048944,1750032636714,-490.0,0.00016438,2]
[366048945,1750032636724,-490.0,0.00016438,2]
[366048946,1750032636734,-490.0,0.00016438,2]
[366048947,1750032636743,-490.0,0.00016438,2]
[366048948,1750032636754,-1067.41,0.00016438,2]
[366048949,1750032636764,-490.0,0.00016438,2]
[366048950,1750032636774,-490.0,0.00016438,2]
[366048951,1750032636784,-720.01,0.00016438,2]
[366048952,1750032636796,-490.0,0.00016438,2]
[366048953,1750032636807,-682.3,0.00016438,2]
[366048954,1750032636817,-490.0,0.00016438,2]
[366048955,1750032636827,-490.0,0.00016438,2]
[366048956,1750032636838,-1399.05,0.00016438,2]
[366048957,1750032636848,-307.5404916,0.00016438,2]
[366048958,1750032636858,-490.0,0.00016438,2]
[366048959,1750032636868,-490.0,0.00016438,2]
[366048960,1750032636878,-863.3,0.00016438,2]
[366048961,1750032636888,-853.27,0.00016438,2]
[366048962,1750032636898,-737.11,0.00016438,2]
[366048963,1750032636908,-1863.9,0.00016438,2]
[366048964,1750032636918,-490.0,0.00016438,2]
[366048965,1750032636928,-860.71,0.00016438,2]
[366048966,1750032636938,-490.0,0.00016438,2]
[366048967,1750032636948,-490.0,0.00016438,2]
[366048968,1750032636958,-490.0,0.00016438,2]
[366048969,1750032636968,-1430.4,0.00016438,2]
[366048970,1750032636978,-490.0,0.00016438,2]
[366048971,1750032636990,-679.05,0.00016438,2]
[366048972,1750032637001,-300.0,0.00016438,2]
[366048973,1750032637011,-490.0,0.00016438,2]
[366048974,1750032637021,-873.61,0.00016438,2]
[366048975,1750032637031,-490.0,0.00016438,2]
[366048976,1750032637041,-1370.84,0.00016438,2]
[366048977,1750032637051,-490.0,0.00016438,2]
[366048978,1750032637425,-1519.96,0.00016438,2]
[366048979,1750032637452,-800.55,0.00016438,2]
[366048980,1750032637463,-490.0,0.00016438,2]
[366048981,1750032637474,-1178.83,0.00016438,2]
[366048982,1750032637484,-671.91,0.00016438,2]
[366048983,1750032637494,-490.0,0.00016438,2]
[366048984,1750032637504,-699.1,0.00016438,2]
[366048985,1750032637514,-500.0,0.00016438,2]
[366048986,1750032637523,-1396.08,0.00016438,2]
[366048987,1750032637533,-500.0,0.00016438,2]
[366048988,1750032637543,-500.0,0.00016438,2]
[366048989,1750032637553,-500.0,0.00016438,2]
[366048990,1750032637563,-500.0,0.00016438,2]
[366048991,1750032637575,-1106.35,0.00016438,2]
[366048992,1750032637585,-490.0,0.00016438,2]
[366048993,1750032637595,-683.56,0.00016438,2]
[366048994,1750032637605,-490.0,0.00016438,2]
[366048995,1750032637616,-490.0,0.00016438,2]
[366048996,1750032637626,-490.0,0.00016438,2]
[366048997,1750032637637,-183.43754084,0.00016438,2]
[366048998,1750032637647,-722.68,0.00016438,2]
[366048999,1750032637658,-1465.83,0.00016438,2]
[366049000,1750032637670,-490.0,0.00016438,2]
[366049002,1750032637680,-620.24,0.00016438,2]
[366049003,1750032637691,-606.32,0.00016438,2]
[366049004,1750032637701,-683.07,0.00016438,2]
[366049005,1750032637711,-490.0,0.00016438,2]
[366049006,1750032637721,-490.0,0.00016438,2]
[366049007,1750032637732,-1875.48,0.00016438,2]
[366049008,1750032637743,-490.0,0.00016438,2]
[366049009,1750032637753,-640.81,0.00016438,2]
[366049010,1750032637764,-676.63,0.00016438,2]
[366049011,1750032637774,-490.0,0.00016438,2]
[366049012,1750032637784,-490.0,0.00016438,2]
[366049013,1750032637795,-490.0,0.00016438,2]
[366049014,1750032637805,-490.0,0.00016438,2]
[366049015,1750032637815,-999.03,0.00016438,2]
[366049016,1750032637830,-490.0,0.00016438,2]
[366049017,1750032637840,-490.0,0.00016438,2]